bitfinex-derivatives/quotes_SOLF0:USTF0_20250720
["timestamp","ask_amount","ask_price","bid_price","bid_amount"]
[1752985274974,3.15,177.96,177.91,1.87784738]
[1752985275573,3.15,177.96,177.95,5.6164]
[1752985275773,5.6157,177.98,177.95,5.6164]
[1752985275977,3.15,177.97,177.96,3.24]
[1752985276569,3.15,177.98,177.95,5.6164]
[1752985276773,3.15,177.98,177.97,3.24]
[1752985277378,8.7655,177.98,177.97,3.24]
[1752985277678,3.15,178.0,177.97,3.24]
[1752985278481,3.15,178.0,177.98,3.24]
[1752985278877,5.6147,178.01,177.98,3.24]
[1752985279072,8.7647,178.01,177.98,3.24]
[1752985279673,3.15,178.01,177.98,8.8552]
[1752985279872,3.15,178.01,177.99,3.24]
[1752985281273,8.7647,178.01,178.0,3.16]
[1752985282581,6.26863646,178.05,178.0,3.16]
[1752985282778,11.30648384,178.06,178.0,3.16]
[1752985282977,5.03784738,178.06,178.0,3.16]
[1752985283179,8.7737,178.04,178.01,3.16]
[1752985283486,3.16,178.04,178.01,3.16]
[1752985284178,8.7734,178.05,178.02,3.16]
[1752985284383,3.16,178.04,178.02,3.16]
[1752985285282,5.6128,178.07,178.03,3.16]
[1752985285483,3.16,178.05,178.03,3.16]
[1752985285878,3.16,178.06,178.04,3.16]
[1752985286381,10.65054738,178.07,178.04,3.16]
[1752985286687,5.03784738,178.07,178.04,8.7733]
[1752985286887,5.03784738,178.07,178.05,3.16]
[1752985287182,5.03784738,178.07,178.06,3.16]
[1752985287784,10.65054738,178.07,178.06,3.16]
[1752985288187,10.65054738,178.07,178.03,5.6136]
[1752985288379,10.65054738,178.07,178.04,3.16]
[1752985288580,3.16,178.07,178.04,3.16]
[1752985288789,3.16,178.07,178.04,8.7735]
[1752985288985,3.16,178.07,178.05,3.16]
[1752985289184,8.7727,178.07,178.05,3.16]
[1752985289380,8.7727,178.07,178.04,5.6135]
[1752985289584,8.7727,178.07,178.06,3.16]
[1752985291793,3.16,178.07,178.06,3.16]
[1752985292694,3.16,178.08,178.06,3.16]
[1752985292889,3.16,178.08,178.07,3.16]
[1752985293091,8.7723,178.08,178.07,3.16]
[1752985294096,5.6123,178.08,178.07,3.16]
[1752985294392,8.7723,178.08,178.07,3.16]
[1752985295397,1.87784738,178.11,178.07,3.16]
[1752985295692,3.16,178.11,178.07,3.16]
[1752985295896,8.7717,178.11,178.07,8.7725]
[1752985296095,8.7717,178.11,178.08,3.16]
[1752985296793,8.7717,178.11,178.09,3.16]
[1752985297996,3.16,178.1,178.07,3.16]
[1752985298395,5.6118,178.1,178.06,5.613]
[1752985298590,3.16,178.09,178.07,3.16]
[1752985298787,3.16,178.1,178.07,3.16]
[1752985298988,196.44416919,178.18,178.09,3.16]
[1752985298989,5.03784738,178.13,178.09,3.16]
[1752985299293,3.16,178.12,178.09,3.16]
[1752985299493,1.87784738,178.13,177.98,105.52]
[1752985299494,3.16,178.13,178.1,3.16]
[1752985300091,3.16,178.13,178.11,3.16]
[1752985300301,3.16,178.15,178.11,3.16]
[1752985301091,3.16,178.15,178.13,3.16]
[1752985301299,3.16,178.15,178.09,3.16]
[1752985301494,3.16,178.17,178.11,3.16]
[1752985302495,0.03550739,178.16,178.11,3.16]
[1752985302702,3.19550739,178.16,178.11,3.16]
[1752985303198,3.19550739,178.16,178.14,5.6104]
[1752985303398,3.19550739,178.16,178.15,3.16]
[1752985303600,0.03550739,178.16,178.15,3.16]
[1752985303904,3.16,178.21,178.16,3.16]
[1752985304496,1.87784738,178.22,178.16,5.6097]
[1752985304704,3.16,178.19,178.17,3.16]
[1752985304904,3.16,178.19,178.13,1.87784738]
[1752985305098,3.16,178.19,178.18,3.16]
[1752985305899,8.7688,178.2,178.19,3.16]
[1752985306906,3.16,178.19,178.17,0.03553663]
[1752985307998,8.7692,178.18,178.17,0.03553663]
[1752985309399,8.7692,178.18,178.17,3.19553663]
[1752985309604,3.16,178.18,178.17,3.19553663]
[1752985309809,3.16,178.2,178.17,3.19553663]
[1752985310700,3.16,178.2,178.17,8.80493663]
[1752985310902,3.16,178.2,178.18,3.07]
[1752985311101,3.16,178.2,178.19,3.07]
[1752985312105,8.7686,178.2,178.19,3.07]
[1752985312509,3.18,178.19,178.17,0.03553663]
[1752985312702,3.18,178.18,178.17,3.10553663]
[1752985317810,5.6092,178.19,178.17,3.10553663]
[1752985318009,8.7892,178.19,178.18,3.07]
[1752985318198,3.18,178.19,178.18,3.07]
[1752985319607,8.7889,178.19,178.18,3.07]
[1752985320010,3.18,178.19,178.18,3.07]
[1752985320601,3.18,178.19,178.17,0.03553663]
[1752985321101,5.05784738,178.19,178.17,0.03553663]
[1752985321308,8.7892,178.18,178.17,0.03553663]
[1752985326714,10.66704738,178.18,178.17,3.10553663]
[1752985327112,8.7892,178.18,178.17,3.10553663]
[1752985327412,3.18,178.19,178.17,3.10553663]
[1752985328014,1.87784738,178.21,178.17,3.10553663]
[1752985328015,5.05784738,178.21,178.17,3.10553663]
[1752985328210,3.18,178.2,178.17,3.10553663]
[1752985328610,1.87784738,178.23,178.17,3.10553663]
[1752985328611,3.18,178.23,178.2,3.07]
[1752985329114,8.7878,178.23,178.2,3.07]
[1752985329713,3.18,178.23,178.2,3.07]
[1752985329918,3.18,178.25,178.2,3.07]
[1752985330114,3.18,178.24,178.2,3.07]
[1752985330815,3.18,178.24,178.21,5.608]
[1752985331017,3.18,178.24,178.22,3.07]
[1752985331313,5.6072,178.25,178.22,3.07]
[1752985331510,3.18,178.24,178.22,3.07]
[1752985332607,5.05784738,178.26,178.22,3.07]
[1752985332807,3.18,178.26,178.22,3.07]
[1752985333007,5.6072,178.25,178.22,3.07]
[1752985333211,3.18,178.24,178.22,3.07]
[1752985333716,3.18,178.24,178.23,3.07]
[1752985334318,8.7873,178.24,178.23,3.07]
[1752985335523,1.87784738,178.27,178.23,3.07]
[1752985335524,5.6065,178.27,178.23,3.07]
[1752985335727,3.18,178.27,178.23,3.07]
[1752985336528,8.787,178.26,178.23,3.07]
[1752985336717,3.18,178.26,178.23,3.07]
[1752985337927,5.607,178.25,178.23,3.07]
[1752985338424,8.7865,178.27,178.24,3.07]
[1752985339728,5.6067,178.26,178.24,3.07]
[1752985340027,5.6067,178.26,178.24,3.10587689]
[1752985340230,8.7867,178.26,178.24,3.10587689]
[1752985340630,5.607,178.25,178.24,3.10587689]
[1752985341021,3.18,178.26,178.25,3.14]
[1752985341223,8.7867,178.26,178.25,3.14]
[1752985341731,3.18,178.26,178.25,3.14]
[1752985342431,1.87784738,178.28,178.25,3.14]
[1752985342631,8.7866,178.27,178.25,3.14]
[1752985342826,8.7866,178.27,178.24,0.03587689]
[1752985342827,8.7866,178.27,178.26,3.14]
[1752985344328,8.7863,178.28,178.26,3.14]
[1752985344528,5.6063,178.28,178.26,3.14]
[1752985344930,8.7863,178.28,178.26,3.14]
[1752985345531,7.48364738,178.29,178.26,3.14]
[1752985345826,3.18,178.29,178.26,3.14]
[1752985346028,1.87784738,178.31,178.26,3.14]
[1752985346229,3.18,178.28,178.26,3.14]
[1752985346426,8.7863,178.28,178.26,3.14]
[1752985346628,8.7863,178.28,178.27,3.14]
[1752985347934,3.18,178.28,178.27,3.14]
[1752985348129,8.7858,178.29,178.27,3.14]
[1752985350032,8.7855,178.3,178.27,3.14]
[1752985350333,5.6055,178.3,178.27,3.14]
[1752985350530,8.7858,178.29,178.27,3.14]
[1752985351135,5.606,178.28,178.27,3.14]
[1752985352225,8.786,178.28,178.27,3.14]
[1752985352733,1.87784738,178.3,178.27,3.14]
[1752985352734,8.7858,178.29,178.27,3.14]
[1752985352927,5.05784738,178.31,178.27,3.14]
[1752985353334,3.18,178.3,178.27,3.14]
[1752985353536,3.18,178.29,178.27,3.14]
[1752985353937,5.6056,178.3,178.27,3.14]
[1752985354538,8.7852,178.31,178.28,3.14]
[1752985354931,8.7852,178.31,178.28,3.17567372]
[1752985355734,3.18,178.32,178.3,3.14]
[1752985356642,5.6043,178.34,178.3,3.14]
[1752985356839,3.18,178.35,178.3,3.14]
[1752985357039,3.18,178.34,178.32,3.14]
[1752985357235,3.18,178.35,178.32,3.14]
[1752985357541,5.05784738,178.37,178.32,3.14]
[1752985357738,3.18,178.36,178.32,3.14]
[1752985358944,3.18,178.36,178.33,5.6042]
[1752985359138,3.18,178.36,178.34,3.14]
[1752985359845,8.7836,178.36,178.34,3.14]
[1752985360442,8.7836,178.36,178.35,3.14]
[1752985361441,3.18,178.34,178.33,0.03564883]
[1752985361838,3.18,178.34,178.22,132.2732033]
[1752985362141,3.18,178.31,178.3,3.14]
[1752985362944,8.7851,178.31,178.3,3.14]
[1752985363347,3.18,178.31,178.3,3.14]
[1752985364345,3.18,178.32,178.3,3.14]
[1752985364744,3.18,178.32,178.31,3.14]
[1752985364944,8.785,178.32,178.31,3.14]
[1752985365248,3.18,178.32,178.31,3.14]
[1752985365746,5.05784738,178.33,178.28,5.6057]
[1752985365945,10.66234738,178.33,178.32,3.14]
[1752985367050,8.7845,178.33,178.32,3.14]
[1752985369251,5.6039,178.35,178.32,3.14]
[1752985369453,8.7839,178.35,178.32,3.14]
[1752985369643,1.87784738,178.38,178.32,3.14]
[1752985369845,3.18,178.35,178.33,3.14]
[1752985371051,8.784,178.35,178.34,3.11]
[1752985372748,1.87784738,178.36,178.32,3.11]
[1752985372958,3.04,178.33,178.32,3.11]
[1752985373966,8.6445,178.33,178.32,3.11]
[1752985375863,8.6449,178.32,178.29,3.11]
[1752985376065,5.6049,178.32,178.29,3.11]
[1752985376569,8.6446,178.33,178.3,3.11]
[1752985377670,7.48214738,178.34,178.3,8.7153]
[1752985377869,5.6043,178.34,178.3,5.6053]
[1752985378063,5.6043,178.34,178.31,3.11]
[1752985379061,5.6045,178.33,178.31,3.11]
[1752985379459,5.6042,178.34,178.32,3.11]
[1752985380065,5.604,178.35,178.32,3.11]
[1752985380270,5.604,178.35,178.33,3.11]
[1752985382667,5.6042,178.34,178.33,3.11]
[1752985385374,8.6442,178.34,178.33,3.11]
[1752985385570,3.04,178.33,178.24,3.11]
[1752985385775,3.04,178.32,178.27,3.11]
[1752985385973,3.04,178.31,178.27,3.11]
[1752985386169,3.04,178.3,178.23,3.11]
[1752985387373,3.04,178.28,178.26,3.11]
[1752985388071,5.6066,178.27,178.23,5.6074]
[1752985388271,5.6066,178.27,178.22,134.15105068]
[1752985388272,5.6066,178.27,178.22,132.2732033]
[1752985388672,5.6066,178.27,178.24,5.6071]
[1752985388872,5.6066,178.27,178.25,3.11]
[1752985391181,5.6066,178.27,178.26,3.11]
[1752985391977,5.6062,178.28,178.26,3.11]
[1752985392777,4.91784738,178.3,178.22,134.15105068]
[1752985392974,4.91784738,178.32,178.25,3.11]
[1752985393178,4.91784738,178.34,178.25,3.11]
[1752985393481,3.04,178.34,178.29,3.11]
[1752985393872,3.04,178.34,178.28,1.87784738]
[1752985393873,5.6045,178.33,178.32,3.11]
[1752985394069,3.04,178.34,178.32,3.11]
[1752985394278,4.91784738,178.36,178.32,3.11]
[1752985394477,8.6441,178.35,178.32,5.6047]
[1752985394678,8.6441,178.35,178.33,3.11]
[1752985395583,5.6041,178.35,178.33,3.11]
[1752985395782,5.6042,178.34,178.33,3.11]
[1752985395977,4.91784738,178.34,178.31,3.11]
[1752985396177,1.87784738,178.34,178.31,3.11]
[1752985396380,8.6448,178.32,178.31,3.11]
[1752985396582,3.04,178.32,178.31,3.11]
[1752985397577,5.6047,178.33,178.29,5.6055]
[1752985397784,8.6447,178.33,178.32,3.11]
[1752985399784,3.04,178.33,178.32,3.11]
[1752985399983,3.04,178.35,178.32,3.11]
[1752985400785,5.6041,178.35,178.33,3.21]
[1752985400981,1.87784738,178.36,178.33,3.21]
[1752985401189,3.0,178.37,178.33,3.21]
[1752985401388,5.6036,178.36,178.34,3.21]
[1752985401686,3.0,178.37,178.34,3.21]
[1752985402083,3.0,178.36,178.34,3.21]
[1752985402884,5.6035,178.36,178.32,5.6047]
[1752985403080,1.87784738,178.36,178.33,3.21]
[1752985403281,3.0,178.35,178.33,3.21]
[1752985403477,3.0,178.37,178.33,3.21]
[1752985403683,3.0,178.35,178.34,3.21]
[1752985404288,5.604,178.35,178.34,3.21]
[1752985404887,4.87784738,178.37,178.34,3.21]
[1752985404888,5.6036,178.36,178.34,3.21]
[1752985405886,8.6036,178.36,178.34,3.21]
[1752985406085,5.6036,178.36,178.34,3.21]
[1752985406788,8.6036,178.36,178.34,3.21]
[1752985407490,5.6036,178.36,178.34,3.21]
[1752985408282,0.03537116,178.37,178.34,3.21]
[1752985408488,3.03537116,178.37,178.34,3.21]
[1752985409290,5.6038,178.36,178.34,3.21]
[1752985409590,0.03537116,178.37,178.34,3.21]
[1752985410091,3.03537116,178.37,178.34,3.21]
[1752985410785,0.03537116,178.37,178.35,3.21]
[1752985411392,0.03537116,178.37,178.35,8.8136]
[1752985411591,0.03537116,178.37,178.35,3.21]
[1752985412291,0.03537116,178.37,178.36,8.8135]
[1752985412985,3.0,178.42,178.38,5.6028]
[1752985413189,3.0,178.43,178.39,3.21]
[1752985413795,5.6021,178.41,178.39,3.21]
[1752985413999,8.6021,178.41,178.39,3.21]
[1752985414995,3.0,178.41,178.39,3.21]
[1752985416392,5.6018,178.42,178.39,3.21]
[1752985416593,8.6018,178.42,178.39,3.21]
[1752985416893,8.6018,178.42,178.39,5.6025]
[1752985417099,8.6018,178.42,178.4,3.21]
[1752985417397,5.602,178.41,178.4,3.21]
[1752985417602,8.602,178.41,178.4,3.21]
[1752985419997,8.602,178.41,178.38,0.03544552]
[1752985420302,3.0,178.4,178.38,3.24544552]
[1752985420504,5.602,178.41,178.39,3.21]
[1752985420702,5.6023,178.4,178.38,0.03544552]
[1752985421100,3.0,178.39,178.38,3.24544552]
[1752985422204,8.6023,178.4,178.38,3.24544552]
[1752985423007,8.6023,178.4,178.38,0.03544552]
[1752985423304,8.6026,178.39,178.38,0.03544552]
[1752985424107,8.6026,178.39,178.38,3.24544552]
[1752985424701,8.6026,178.39,178.38,0.03544552]
[1752985429814,8.6026,178.39,178.38,3.24544552]
[1752985430114,8.6026,178.39,178.38,0.03544552]
[1752985432318,8.6026,178.39,178.38,3.29544552]
[1752985432713,8.6026,178.39,178.38,0.03544552]
[1752985433517,8.6026,178.39,178.38,3.29544552]
[1752985434519,8.6026,178.39,178.38,0.03544552]
[1752985435109,8.6026,178.39,178.38,3.29544552]
[1752985437818,8.6026,178.39,178.38,0.03544552]
[1752985438318,10.48044738,178.39,178.38,0.03544552]
[1752985440516,9.36030362,178.44,178.34,3.26]
[1752985440517,3.25,178.35,178.34,3.26]
[1752985440913,7.48164738,178.36,178.34,3.26]
[1752985441119,10.73164738,178.36,178.34,3.26]
[1752985442621,10.73164738,178.36,178.31,5.605]
[1752985442622,1.87784738,178.36,178.31,5.605]
[1752985442820,3.25,178.33,178.25,1.87784738]
[1752985443218,5.12784738,178.33,178.26,3.26]
[1752985443622,3.25,178.32,178.26,3.26]
[1752985443821,8.855,178.32,178.29,5.6055]
[1752985444125,8.855,178.32,178.3,3.26]
[1752985444521,8.855,178.32,178.31,3.26]
[1752985445327,3.25,178.32,178.28,3.26]
[1752985445527,5.12784738,178.29,178.28,3.26]
[1752985445728,10.73354738,178.29,178.28,3.26]
[1752985446024,5.12784738,178.29,178.28,3.26]
[1752985446326,10.73354738,178.29,178.28,3.26]
[1752985447122,7.48354738,178.29,178.25,3.26]
[1752985447337,3.25,178.27,178.25,3.26]
[1752985447828,3.25,178.27,178.26,3.26]
[1752985448528,7.48364738,178.29,178.26,3.26]
[1752985448825,3.25,178.28,178.26,3.26]
[1752985449126,8.8563,178.28,178.27,3.26]
[1752985450825,5.6065,178.27,178.25,3.26]
[1752985451132,10.73434738,178.27,178.25,3.26]
[1752985451617,5.12784738,178.33,178.25,5.13784738]
[1752985451817,3.25,178.32,178.26,3.26]
[1752985452023,8.8555,178.3,178.28,3.26]
[1752985452830,3.25,178.29,178.26,5.6064]
[1752985453532,8.8558,178.29,178.27,3.26]
[1752985454830,3.25,178.29,178.28,3.26]
[1752985455424,5.12784738,178.3,178.28,5.606]
[1752985455630,3.25,178.3,178.29,3.26]
[1752985456926,0.03552669,178.31,178.29,3.26]
[1752985458127,0.03552669,178.31,178.29,8.8655]
[1752985458728,0.03552669,178.31,178.3,3.26]
[1752985460633,5.64062669,178.31,178.3,3.26]
[1752985462529,0.03552669,178.31,178.3,3.26]
[1752985463131,0.03552669,178.31,178.3,8.8654]
[1752985463324,0.03552669,178.31,178.3,5.6054]
[1752985463635,0.03552669,178.31,178.3,8.8354]
[1752985470132,1.87784738,178.38,178.33,3.23]
[1752985470436,5.6037,178.36,178.33,3.23]
[1752985470633,3.01,178.35,178.33,3.23]
[1752985473232,3.01,178.36,178.34,3.23]
[1752985473633,3.01,178.35,178.32,5.6047]
[1752985474135,8.6139,178.35,178.32,5.6047]
[1752985474438,8.6139,178.35,178.33,3.23]
[1752985475637,3.01,178.35,178.33,3.23]
[1752985476236,8.6133,178.37,178.33,3.23]
[1752985476435,3.01,178.36,178.33,3.23]
[1752985476637,3.01,178.36,178.33,5.6044]
[1752985476836,3.01,178.36,178.34,3.23]
[1752985477139,8.6133,178.37,178.34,3.23]
[1752985477337,3.01,178.37,178.34,3.23]
[1752985477843,8.6132,178.37,178.34,3.23]
[1752985478240,3.01,178.36,178.34,3.23]
[1752985479443,3.01,178.37,178.34,3.23]
[1752985479742,3.01,178.36,178.34,3.23]
[1752985481250,3.01,178.35,178.34,3.23]
[1752985482643,5.6032,178.37,178.34,3.23]
[1752985482845,3.01,178.36,178.34,3.23]
[1752985483350,3.01,178.36,178.35,3.23]
[1752985486647,4.20488565,178.36,178.35,3.23]
[1752985488242,5.603,178.38,178.35,3.23]
[1752985488449,3.01,178.37,178.35,3.23]
[1752985489445,9.80788565,178.38,178.36,3.23]
[1752985489750,1.19488565,178.37,178.36,3.23]
[1752985490546,4.22488565,178.37,178.36,3.23]
[1752985490942,1.19488565,178.39,178.37,2.98]
[1752985491246,3.03,178.4,178.37,2.98]
[1752985491445,4.22488565,178.4,178.37,5.603]
[1752985491646,4.22488565,178.4,178.38,2.98]
[1752985493348,9.82718565,178.4,178.38,2.98]
[1752985493647,3.03,178.39,178.38,2.98]
[1752985494149,1.19488565,178.4,178.38,2.98]
[1752985494550,4.22488565,178.4,178.38,2.98]
[1752985495352,9.82718565,178.4,178.38,2.98]
[1752985495747,3.03,178.39,178.38,2.98]
[1752985496652,4.22488565,178.4,178.38,8.5828]
[1752985496847,4.22488565,178.4,178.39,2.98]
[1752985498050,1.19488565,178.4,178.39,8.5826]
[1752985498349,6.79718565,178.4,178.39,2.98]
[1752985498655,9.82718565,178.4,178.39,2.98]
[1752985500859,8.6323,178.4,178.39,2.98]
[1752985501057,9.82718565,178.4,178.39,2.98]
[1752985501957,6.79718565,178.4,178.39,2.98]
[1752985502152,1.19488565,178.4,178.39,2.98]
[1752985502450,3.03,178.44,178.4,2.98]
[1752985502651,1.19488565,178.43,178.4,2.98]
[1752985502848,1.19488565,178.44,178.41,2.98]
[1752985503048,1.19488565,178.44,178.42,2.98]
[1752985503455,6.79598565,178.44,178.42,2.98]
[1752985503659,9.82598565,178.44,178.42,2.98]
[1752985503858,4.22488565,178.43,178.41,2.98]
[1752985504552,9.82638565,178.43,178.41,2.98]
[1752985504950,3.03,178.41,178.32,4.69828599]
[1752985505157,3.03,178.4,178.32,4.69828599]
[1752985505356,3.03,178.4,178.38,1.19488565]
[1752985505657,3.03,178.4,178.39,2.98]
[1752985506547,6.79668565,178.42,178.39,2.98]
[1752985506754,3.03,178.41,178.39,2.98]
[1752985506953,3.03,178.41,178.39,5.6025]
[1752985507155,3.03,178.41,178.4,2.98]
[1752985507856,9.82668565,178.42,178.4,2.98]
[1752985509561,3.03,178.41,178.4,2.98]
[1752985509755,8.632,178.41,178.4,2.98]
[1752985511861,3.03,178.39,178.38,0.03573599]
[1752985512259,9.82748565,178.39,178.38,0.03573599]
[1752985512962,9.82748565,178.39,178.38,3.01573599]
[1752985518259,9.82748565,178.39,178.38,0.03573599]
[1752985518668,9.82748565,178.39,178.38,3.01573599]
[1752985519461,9.82748565,178.39,178.38,0.03573599]
[1752985522268,9.82748565,178.39,178.38,3.02573599]
[1752985522767,8.6326,178.39,178.38,3.02573599]
[1752985529474,9.82748565,178.39,178.38,3.02573599]
[1752985533575,9.82748565,178.39,178.38,0.03573599]
[1752985533779,3.29,178.38,178.35,2.99]
[1752985533974,3.29,178.36,178.35,2.99]
[1752985534882,8.8935,178.36,178.35,2.99]
[1752985535282,1.19488565,178.37,178.35,2.99]
[1752985536184,6.79828565,178.37,178.35,2.99]
[1752985536577,10.08828565,178.37,178.35,2.99]
[1752985537072,5.6035,178.36,178.35,2.99]
[1752985537282,8.8935,178.36,178.35,2.99]
[1752985540588,5.6035,178.36,178.35,2.99]
[1752985541388,10.08818565,178.37,178.35,2.99]
[1752985542086,6.79818565,178.37,178.35,2.99]
[1752985542484,5.6033,178.37,178.35,2.99]
[1752985545892,5.6033,178.37,178.35,8.5938]
[1752985546088,5.6033,178.37,178.36,2.99]
[1752985547988,8.8933,178.37,178.36,2.99]
[1752985554893,5.63881614,178.38,178.36,2.99]
[1752985555094,4.49070179,178.38,178.36,2.99]
[1752985556798,10.09380179,178.38,178.36,2.99]
[1752985558502,1.23070179,178.38,178.36,8.5935]
[1752985558703,1.23070179,178.38,178.37,3.28]
[1752985558901,0.03581614,178.38,178.37,4.47488565]
[1752985559599,0.03581614,178.38,178.37,3.28]
[1752985564605,3.26,178.41,178.37,3.28]
[1752985564800,3.26,178.41,178.39,3.28]
[1752985567099,4.45488565,178.41,178.39,3.28]
[1752985567298,3.26,178.4,178.39,3.28]
[1752985568200,3.26,178.4,178.37,3.28]
[1752985568393,3.26,178.38,178.37,3.28]
[1752985568897,3.26,178.38,178.35,3.28]
[1752985569204,11.2005,178.47,178.35,3.28]
[1752985569205,4.45488565,178.36,178.35,3.28]
[1752985569799,10.05838565,178.36,178.35,3.28]
[1752985570499,3.26,178.35,178.32,3.28]
[1752985571904,3.26,178.34,178.33,3.28]
[1752985574108,3.26,178.34,178.33,8.8845]
[1752985574711,3.26,178.34,178.33,3.28]
[1752985577207,3.26,178.38,178.33,3.28]
[1752985577408,4.45488565,178.36,178.33,3.28]
[1752985577608,4.45488565,178.36,178.33,1.19488565]
[1752985577808,4.45488565,178.36,178.34,3.28]
[1752985578506,4.45488565,178.39,178.36,3.28]
[1752985578710,3.26,178.39,178.38,3.28]
[1752985578903,3.26,178.42,178.38,3.28]
[1752985579111,3.26,178.42,178.4,3.28]
[1752985581310,8.6617,178.42,178.4,3.28]
[1752985581612,3.06,178.41,178.39,5.63848949]
[1752985582110,3.06,178.41,178.4,3.27]
[1752985582307,8.6617,178.42,178.4,3.27]
[1752985582504,3.06,178.42,178.4,3.27]
[1752985583113,3.06,178.42,178.41,3.27]
[1752985583311,8.6614,178.43,178.41,3.27]
[1752985584413,5.6016,178.42,178.41,3.27]
[1752985584615,3.06,178.43,178.41,3.27]
[1752985584815,3.06,178.42,178.41,3.27]
[1752985586016,8.6616,178.42,178.41,3.27]
[1752985589614,3.06,178.44,178.41,3.27]
[1752985590215,8.6611,178.44,178.41,3.27]
[1752985594116,3.06,178.43,178.41,3.27]
[1752985595817,8.6614,178.43,178.41,3.27]
[1752985596614,5.6014,178.43,178.41,3.27]
[1752985596815,3.06,178.42,178.41,3.27]
[1752985597711,8.6616,178.42,178.41,3.27]
[1752985599520,8.6616,178.42,178.39,3.30588949]
[1752985599720,3.06,178.41,178.39,3.30588949]
[1752985600019,3.06,178.4,178.39,3.30588949]
[1752985601821,3.06,178.4,178.39,0.03588949]
[1752985602320,8.6623,178.4,178.39,0.03588949]
[1752985603120,9.85689241,178.4,178.39,0.03588949]
[1752985604909,8.6623,178.4,178.39,0.03588949]
[1752985606713,8.6623,178.4,178.39,3.30588949]
[1752985607216,1.86645876,178.4,178.35,3.27]
[1752985607417,3.06,178.39,178.35,3.27]
[1752985607817,5.6031,178.38,178.36,3.27]
[1752985608017,3.06,178.37,178.36,3.27]
[1752985609720,0.03566898,178.38,178.36,3.27]
[1752985610921,3.05566898,178.38,178.37,8.6932]
[1752985613622,0.03566898,178.38,178.37,8.6932]
[1752985614018,3.05566898,178.38,178.37,8.6932]
[1752985615923,3.05566898,178.38,178.37,3.09]
[1752985618033,3.05566898,178.38,178.34,3.09]
[1752985618934,3.05566898,178.38,178.35,5.6036]
[1752985619138,3.05566898,178.38,178.36,3.09]
[1752985619634,3.02,178.37,178.36,3.09]
[1752985619933,3.02,178.37,178.35,3.09]
[1752985621140,5.6033,178.37,178.35,3.09]
[1752985621335,3.02,178.36,178.34,3.09]
[1752985621540,3.02,178.36,178.35,3.09]
[1752985621739,3.02,178.36,178.33,3.09]
[1752985622237,5.6039,178.35,178.32,128.42003096]
[1752985622442,3.02,178.34,178.32,128.42003096]
[1752985622843,3.02,178.35,178.33,5.6045]
[1752985623140,3.02,178.35,178.34,3.09]
[1752985624538,8.6238,178.35,178.34,3.09]
[1752985624943,3.02,178.35,178.34,3.09]
[1752985626036,3.02,178.36,178.34,3.09]